fUST/lending_fUST_20250829
["ID","MTS","AMOUNT","RATE_DAILY","PERIOD"]
[382007226,1756474248767,-500.0,0.00039363,2]
[382007227,1756474248777,-151.0,0.00039363,2]
[382007229,1756474248787,-300.0,0.00039363,2]
[382007232,1756474248796,-151.0,0.00039363,2]
[382007234,1756474248807,-151.0,0.00039363,2]
[382007236,1756474248817,-300.0,0.00039363,2]
[382007238,1756474248827,-151.0,0.00039363,2]
[382007240,1756474248836,-300.0,0.00039363,2]
[382007241,1756474248845,-151.0,0.00039363,2]
[382007244,1756474248855,-300.0,0.00039363,2]
[382007245,1756474248866,-153.04630507,0.00039363,2]
[382007247,1756474248875,-151.0,0.00039363,2]
[382007249,1756474248894,-300.0,0.00039363,2]
[382007251,1756474248904,-151.0,0.00039363,2]
[382007253,1756474248913,-301.82369365,0.00039363,2]
[382007255,1756474248923,-151.0,0.00039363,2]
[382007257,1756474248933,-152.23356903,0.00039363,2]
[382007260,1756474248942,-151.0,0.00039363,2]
[382007262,1756474248952,-151.0,0.00039363,2]
[382007263,1756474248961,-2434.74389024,0.00039418,2]
[382007265,1756474248971,-1428.56,0.00039452,120]
[382007268,1756474248982,-500.0,0.00039466,7]
[382007270,1756474248992,-1580.15955788,0.00039473,2]
[382007271,1756474249002,-500.0,0.00039795,7]
[382007274,1756474249012,-663.37366008,0.00039826,2]
[382007275,1756474249022,-232.6790651,0.0004,120]
[382007277,1756474249032,-276.0,0.0004,120]
[382007279,1756474249042,-500.0,0.0004,2]
[382007282,1756474249052,-214.30569527,0.0004,120]
[382007284,1756474249063,-423.68335477,0.0004,120]
[382007286,1756474249072,-160.0,0.0004,120]
[382007287,1756474249082,-1428.56,0.0004,120]
[382007289,1756474249091,-187.03883194,0.00040169,30]
[382007291,1756474249101,-798.22,0.000402,7]
[382007293,1756474249111,-194.72792766,0.00040475,2]
[382007295,1756474249122,-1428.56,0.00040547,120]
[382007298,1756474249137,-500.0,0.00040548,30]
[382007299,1756474249147,-500.0,0.00040727,30]
[382007302,1756474249157,-180.0,0.00041,90]
[382007304,1756474249167,-500.0,0.0004106,30]
[382007305,1756474249177,-500.0,0.00041095,2]
[382007307,1756474249187,-500.0,0.00041095,2]
[382007309,1756474249197,-500.0,0.00041095,2]
[382007311,1756474249208,-500.0,0.00041095,2]
[382007313,1756474249218,-500.0,0.00041095,2]
[382007316,1756474249228,-500.0,0.00041095,2]
[382007317,1756474249237,-500.0,0.00041095,2]
[382007319,1756474249247,-500.0,0.00041095,2]
[382007321,1756474249258,-500.0,0.00041095,2]
[382007324,1756474249269,-500.0,0.00041095,2]
[382007326,1756474249280,-500.0,0.00041095,2]
[382007328,1756474249290,-500.0,0.00041095,2]
[382007330,1756474249301,-500.0,0.00041095,2]
[382007332,1756474249311,-500.0,0.00041095,2]
[382007333,1756474249319,-514.25674816,0.00041095,2]
[382007336,1756474249329,-1428.56,0.00041095,120]
[382007338,1756474249339,-500.0,0.00041096,31]
[382007339,1756474249348,-500.0,0.00041096,31]
[382007342,1756474249359,-500.0,0.00041096,31]
[382007343,1756474249369,-500.0,0.00041096,31]
[382007346,1756474249378,-500.0,0.00041096,31]
[382007347,1756474249395,-500.0,0.00041096,31]
[382007349,1756474249404,-500.0,0.00041096,31]
[382007352,1756474249414,-500.0,0.00041096,31]
[382007354,1756474249423,-500.0,0.00041096,31]
[382007355,1756474249432,-500.0,0.00041096,31]
[382007358,1756474249442,-645.17132638,0.00041096,31]
[382007359,1756474249451,-500.0,0.00041096,31]
[382007362,1756474249460,-500.0,0.00041096,31]
[382007363,1756474249469,-500.0,0.00041096,31]
[382007365,1756474249479,-500.0,0.00041096,31]
[382007367,1756474249489,-500.0,0.00041096,31]
[382007369,1756474249498,-500.0,0.00041096,31]
[382007372,1756474249508,-500.0,0.00041096,31]
[382007374,1756474249518,-500.0,0.00041096,31]
[382007376,1756474249527,-236.04,0.000411,14]
[382007378,1756474249537,-632.40087448,0.00041146,30]
[382007380,1756474249547,-200.0,0.000412,120]
[382007382,1756474249556,-370.74732,0.000412,120]
[382007384,1756474249566,-2151.0,0.0004129,2]
[382007385,1756474249576,-632.0,0.0004129,2]
[382007387,1756474249585,-606.36,0.00041391,30]
[382007389,1756474249595,-500.0,0.00041459,30]
[382007391,1756474249605,-165.991663,0.0004147,2]
[382007393,1756474249614,-160.844583,0.000416,60]
[382007396,1756474249624,-152.802298,0.000416,60]
[382007398,1756474249640,-1428.56,0.00041643,120]
[382007400,1756474249649,-200.0,0.00041656,120]
[382007402,1756474249658,-154.0,0.000417,120]
[382007404,1756474249668,-152.28076,0.00041778,120]
[382007405,1756474249677,-333.913761,0.00041778,120]
[382007408,1756474249686,-333.913761,0.00041778,120]
[382007410,1756474249697,-333.913761,0.00041778,120]
[382007411,1756474249706,-333.913761,0.00041778,120]
[382007414,1756474249716,-47417.725052,0.00041778,2]
[382007416,1756474249725,-320.9874709,0.00041778,2]
[382007417,1756474249734,-193.8588881,0.00041778,2]
[382007420,1756474249745,-651.6114451,0.00041778,2]
[382007422,1756474249754,-22963.0236632,0.00041778,2]
[382007424,1756474249764,-201.93286099,0.00041844,2]
[382007426,1756474249773,-500.0,0.00041851,30]
[382007428,1756474249783,-500.0,0.00041911,30]
[382007430,1756474249792,-500.0,0.00041922,30]
[382007432,1756474249801,-200.0,0.00041964,120]
[382007434,1756474249810,-200.0,0.00041964,120]
[382007436,1756474249820,-500.0,0.00041992,30]
[382007437,1756474249829,-2518.23965559,0.00042,120]
[382007439,1756474249838,-300.0,0.00042,120]
[382007441,1756474249847,-160.0,0.00042009,3]
[382007443,1756474249858,-151.0,0.00042048,60]
[382007445,1756474249867,-366.0,0.0004219,5]
[382007448,1756474249877,-1428.56,0.00042191,120]
[382007449,1756474249893,-500.0,0.00042231,30]
[382007450,1756474249902,-168.24461978,0.00042521,30]
[382007451,1756474249910,-1428.56,0.00042739,120]
[382007452,1756474249919,-160.0,0.00042784,4]
[382007453,1756474249928,-798.22,0.000428,7]
[382007454,1756474249937,-500.0,0.00042925,30]
[382007455,1756474249946,-151.0,0.00042927,60]
[382007456,1756474249955,-500.0,0.00042975,30]
[382007457,1756474249964,-168.24461978,0.00043068,30]
[382007458,1756474249973,-168.24461976,0.00043068,30]
[382007459,1756474249983,-168.24461977,0.00043068,30]
[382007460,1756474249993,-168.24461977,0.00043068,30]
[382007461,1756474250002,-200.0,0.000432,120]
[382007462,1756474250012,-370.74732,0.000432,120]
[382007463,1756474250020,-209.40437684,0.00043213,2]
[382007464,1756474250029,-151.0,0.00043287,120]
[382007465,1756474250039,-1428.56,0.00043287,120]
[382007466,1756474250048,-160.0,0.0004356,5]
[382007468,1756474250057,-1000.0,0.000438,90]
[382007470,1756474250067,-151.0,0.00043806,60]
[382007472,1756474250076,-501.56894266,0.00043833,16]
[382007474,1756474250087,-1428.56,0.00043835,120]
[382007476,1756474250096,-236.04,0.000439,14]
[382007478,1756474250105,-300.0,0.00044,120]
[382007480,1756474250117,-232.6790651,0.00044,30]
[382007482,1756474250127,-529.77114056,0.00044,30]
[382007484,1756474250142,-217.30324474,0.00044,30]
[382007486,1756474250151,-169.0,0.00044,90]
[382007488,1756474250162,-417.15472785,0.00044,30]
[382007490,1756474250171,-160.0,0.00044,30]
[382007492,1756474250180,-169.0,0.0004411,90]
[382007494,1756474250190,-361.96275663,0.000442,120]
[382007496,1756474250200,-625.747,0.0004429,2]
[382007498,1756474250209,-632.0,0.0004429,2]
[382007500,1756474250218,-160.0,0.00044335,6]
[382007502,1756474250228,-1428.56,0.00044383,120]
[382007504,1756474250237,-217.15233878,0.00044582,2]
[382007506,1756474250247,-151.0,0.00044686,60]
[382007508,1756474250261,-1428.56,0.00044931,120]
[382007510,1756474250270,-500.0,0.00044942,30]
[382007512,1756474250280,-2008.04,0.00045,90]
[382007514,1756474250290,-647.0,0.00045,30]
[382007516,1756474250300,-6925.38280607,0.00045,2]
[382007518,1756474250309,-1081.07874408,0.00045,120]
[382007520,1756474250318,-198.13391488,0.00045,120]
[382007522,1756474250329,-150.99999902,0.00045,120]
[382007524,1756474250339,-565660.140903,0.00045,30]
[382011562,1756474303527,13.65760929,0.00024,2]
[382011563,1756474303547,466.34239071,0.00024,2]
[382011564,1756474405453,216.21406313,0.00024,7]
[382011565,1756474570043,322.1747739,0.00027397,120]
[382011567,1756474711561,216.21406313,0.00024,7]
[382011570,1756474860195,167.167402,0.00013699,2]
[382011572,1756474914942,157.36731523,0.00024,2]
[382011584,1756475228145,-453.74689704,0.00024358,2]
[382011585,1756475229097,-183.45952609,0.00024358,2]
[382011592,1756475346134,-4190.79357687,0.00024358,2]
[382011593,1756475346155,-600.0,0.000245,2]
[382011594,1756475346175,-177.09437276,0.00024731,5]
[382011595,1756475346196,-203.76658486,0.00024853,2]
[382011596,1756475346217,-199.967446,0.00025246,2]
[382011597,1756475346237,-600.0,0.000255,3]
[382011598,1756475346260,-176.39207155,0.00025507,2]
[382011599,1756475346285,-1000.0,0.00026305,2]
[382011600,1756475346310,-300.0,0.00026573,2]
[382011601,1756475346331,-1200.0,0.00026574,2]
[382011602,1756475346351,-1200.0,0.00026574,2]
[382011603,1756475346373,-167.167402,0.00027397,2]
[382011604,1756475346395,-872.93528587,0.00027473,2]
[382011605,1756475347312,5656.03853729,0.00026574,2]
[382011606,1756475372099,-2668.01485895,0.00026574,2]
[382011702,1756475437138,-300.0,0.00026573,2]
[382011703,1756475437148,-300.0,0.00026573,2]
[382011704,1756475437158,-300.0,0.00026573,2]
[382011705,1756475437167,-300.0,0.00026573,2]
[382011706,1756475437177,-300.0,0.00026573,2]
[382011707,1756475437186,-20.6525961,0.00026573,2]
[382011708,1756475437198,-1179.3474039,0.00026573,2]
[382011709,1756475437208,-250.63481944,0.00026574,2]
[382011710,1756475437220,-262.542,0.00026574,2]
[382011711,1756475437231,-41162.76978432,0.00026574,2]
[382011712,1756475437241,-427.3827939,0.00027573,2]
[382011713,1756475437252,-420.0,0.00028741,2]
[382011714,1756475437261,-300.0,0.00028741,2]
[382011715,1756475437271,-1200.0,0.00028742,2]
[382011716,1756475437280,-1680.0,0.00028868,2]
[382011718,1756475437289,-150.0,0.00028872,120]
[382011719,1756475437298,-217.30324474,0.00029676,2]
[382011720,1756475437308,-845.57753514,0.00029677,2]
[382011722,1756475437317,-160.0,0.00029677,2]
[382011723,1756475437327,-160.0,0.00029677,2]
[382011724,1756475437336,-160.0,0.00029677,2]
[382011725,1756475437347,-500.0,0.00030333,5]
[382011726,1756475437358,-1000.0,0.00030598,60]
[382011727,1756475437373,-203.46,0.00030608,60]
[382011728,1756475437387,-350.9679044,0.00030881,5]
[382011729,1756475437400,-200.0,0.00030979,14]
[382011730,1756475437413,-500.0,0.000312,5]
[382011731,1756475437424,-501.43765191,0.00031225,5]
[382011732,1756475437434,-303.0,0.00031362,3]
[382011733,1756475437448,-500.0,0.00031733,5]
[382011734,1756475437460,-1000.0,0.00031748,5]
[382011735,1756475437472,-1171.23820561,0.00032296,5]
[382011736,1756475437485,-872.93528582,0.00033248,2]
[382011737,1756475437498,-500.0,0.00034493,7]
[382011738,1756475437510,-503.95383349,0.00035029,5]
[382011739,1756475437522,-156.06898561,0.00035029,5]
[382011740,1756475437534,-500.0,0.00035029,5]
[382011741,1756475437547,-501.0805122,0.00035577,5]
[382011742,1756475437559,-500.0,0.00035758,14]
[382011743,1756475437570,-175.37028889,0.00035758,14]
[382011744,1756475437582,-155.88540194,0.00035758,14]
[382011745,1756475437594,-327.0,0.00035758,14]
[382011746,1756475437607,-327.0,0.00035758,14]
[382011747,1756475437619,-327.0,0.00035758,14]
[382011748,1756475437631,-327.0,0.00035758,14]
[382011749,1756475437643,-327.0,0.00035758,14]
[382011750,1756475437655,-327.0,0.00035758,14]
[382011751,1756475437665,-327.0,0.00035758,14]
[382011752,1756475437675,-327.0,0.00035758,14]
[382011753,1756475437687,-327.0,0.00035758,14]
[382011754,1756475437698,-327.0,0.00035758,14]
[382011755,1756475437710,-327.0,0.00035758,14]
[382011756,1756475437722,-327.0,0.00035758,14]
[382011757,1756475437733,-327.0,0.00035758,14]
[382011759,1756475437745,-327.0,0.00035758,14]
[382011761,1756475437757,-327.0,0.00035758,14]
[382011763,1756475437772,-273.30266499,0.00035758,14]
[382011765,1756475437786,-500.0,0.00036318,7]
[382011769,1756475437799,-500.0,0.00037291,7]
[382011771,1756475437812,-500.0,0.00037933,5]
[382011773,1756475437825,-500.0,0.00038202,7]
[382011776,1756475437836,-504.3818971,0.00038481,5]
[382011779,1756475437847,-974.0,0.00038902,2]
[382011782,1756475437862,-409.0,0.00038902,2]
[382011785,1756475437875,-150.0,0.00038902,2]
[382011788,1756475437889,-167.55,0.00039,7]
[382011791,1756475437902,-872.93528582,0.00039024,2]
[382011794,1756475437915,-248.17,0.0003907,10]
[382011796,1756475437926,-206.81,0.0003907,10]
[382011798,1756475437938,-500.0,0.00039079,15]
[382011800,1756475437951,-460.42583773,0.00039079,15]
[382011802,1756475437963,-500.0,0.00039079,15]
[382011805,1756475437977,-163.85006088,0.00039079,2]
[382011807,1756475437991,-500.0,0.00039079,15]
[382011809,1756475438002,-500.0,0.00039079,15]
[382011811,1756475438014,-201.06727886,0.00039079,15]
[382011813,1756475438026,-500.0,0.00039079,15]
[382011815,1756475438038,-500.0,0.00039079,15]
[382011818,1756475438050,-441.66191676,0.00039079,15]
[382011820,1756475438062,-232.81995827,0.00039079,7]
[382011822,1756475438074,-500.0,0.00039079,15]
[382011824,1756475438085,-500.0,0.00039079,15]
[382011826,1756475438101,-500.0,0.00039079,15]
[382011829,1756475438114,-270.08443108,0.00039079,15]
[382011831,1756475438124,-500.0,0.00039079,15]
[382011833,1756475438135,-500.0,0.00039079,15]
[382011835,1756475438146,-500.0,0.00039079,15]
[382011837,1756475438157,-500.0,0.00039079,15]
[382011839,1756475438169,-500.0,0.00039079,15]
[382011842,1756475438180,-500.0,0.00039079,15]
[382011844,1756475438191,-500.0,0.00039079,7]
[382011846,1756475438202,-500.0,0.00039079,15]
[382011848,1756475438213,-500.0,0.00039079,15]
[382011850,1756475438225,-223.1225488,0.00039079,15]
[382011852,1756475438236,-500.0,0.00039079,15]
[382011854,1756475438246,-500.0,0.00039079,15]
[382011856,1756475438258,-500.0,0.00039079,15]
[382011858,1756475438268,-45808.8088553,0.0003908,3]
[382011861,1756475438279,-216.21406313,0.0003908,3]
[382011863,1756475438290,-217.30324474,0.0003908,3]
[382011865,1756475438302,-199.0,0.000391,120]
[382011867,1756475438314,-199.0,0.000391,120]
[382011869,1756475438325,-319.36884787,0.00039128,2]
[382011872,1756475438337,-151.0,0.00039128,2]
[382011874,1756475438353,-151.0,0.00039128,2]
[382011876,1756475438364,-151.26354934,0.00039128,2]
[382011878,1756475438376,-502.03135035,0.00039964,7]
[382011880,1756475438387,-151.0,0.0004,60]
[382011883,1756475438399,-500.0,0.00040992,30]
[382011885,1756475438410,-167.167402,0.00041096,2]
[382011887,1756475438422,-500.0,0.00041096,31]
[382011889,1756475438434,-571.68570293,0.00041096,31]
[382011891,1756475438445,-974.0,0.00041902,2]
[382011894,1756475438457,-409.0,0.00041902,2]
[382011896,1756475438468,-654.75,0.0004279,120]
[382011898,1756475438479,-709.3,0.00042792,30]
[382011900,1756475438490,-492.57,0.00042792,30]
[382011902,1756475438500,-285.05,0.00042792,30]
[382011904,1756475438511,-237.55,0.00042792,30]
[382011906,1756475438522,-197.95,0.00042792,30]
[382011909,1756475438533,-164.96,0.00042792,30]
[382011911,1756475438544,-824.84,0.00042792,30]
[382011913,1756475438556,-14564.92484648,0.00042792,3]
[382011916,1756475438570,-726.62253633,0.00042792,3]
[382011919,1756475438590,-580.83925757,0.00042792,3]
[382011961,1756475439037,-425.57542551,0.00029676,2]
[382011963,1756475439048,-174.83973701,0.00042792,3]
[382011965,1756475439060,-1128.51013012,0.00042792,3]
[382011969,1756475439094,-830.01988448,0.00042792,3]
[382011971,1756475439116,-8721.0248238,0.00042792,3]
[382011974,1756475439128,-19082.02763951,0.00042792,3]
[382011976,1756475439138,-216.21406313,0.00042792,3]
[382011978,1756475439148,-591.09,0.00042802,30]
[382011979,1756475439157,-410.48,0.00042802,30]
[382011981,1756475439167,-342.06,0.00042802,30]
[382011983,1756475439176,-425.57542551,0.00042802,3]
[382011985,1756475439186,-845.57753514,0.00042802,3]
[382011987,1756475439195,-232.6790651,0.00042802,3]
[382011989,1756475439205,-169.0,0.00043,90]
[382011991,1756475439215,-169.0,0.00043014,90]
[382011993,1756475439224,-500.0,0.00043198,30]
[382011995,1756475439233,-500.0,0.00043209,30]
[382011997,1756475439243,-500.0,0.00043291,30]
[382011999,1756475439252,-654.75,0.00043338,120]
[382012001,1756475439261,-726.690206,0.00043768,30]
[382012003,1756475439271,-654.75,0.00043886,120]
[382012004,1756475439280,-167.55,0.000439,14]
[382012006,1756475439290,-230.43683106,0.00044412,10]
[382012008,1756475439299,-500.0,0.00044412,10]
[382012010,1756475439309,-502.97462895,0.00044412,10]
[382012012,1756475439318,-174.10799409,0.00044412,10]
[382012014,1756475439328,-500.0,0.00044412,10]
[382012016,1756475439337,-500.62038273,0.00044412,10]
[382012018,1756475439346,-654.75,0.00044434,120]
[382012020,1756475439361,-153.0,0.00044603,30]
[382012022,1756475439371,-153.0,0.00044603,30]
[382012023,1756475439380,-1164.652766,0.00044603,30]
[382012024,1756475439390,-294.6377317,0.00044603,30]
[382012025,1756475439400,-161.2295834,0.00044603,30]
[382012026,1756475439410,-161.2295834,0.00044603,30]
[382012027,1756475439419,-153.0,0.00044603,30]
[382012028,1756475439429,-153.0,0.00044603,30]
[382012029,1756475439438,-294.6377317,0.00044603,30]
[382012030,1756475439448,-161.2295834,0.00044603,30]
[382012031,1756475439458,-294.6377317,0.00044603,30]
[382012032,1756475439467,-153.0,0.00044603,30]
[382012033,1756475439476,-161.2295834,0.00044603,30]
[382012034,1756475439486,-292.4861458,0.00044603,30]
[382012035,1756475439495,-153.0,0.00044603,30]
[382012036,1756475439505,-161.2295834,0.00044603,30]
[382012037,1756475439514,-161.2295834,0.00044603,30]
[382012038,1756475439524,-153.0,0.00044603,30]
[382012039,1756475439533,-153.0,0.00044603,30]
[382012040,1756475439543,-153.0,0.00044603,30]
[382012041,1756475439553,-425.57542551,0.00044603,30]
[382012042,1756475439563,-216.21406313,0.00044603,30]
[382012043,1756475439572,-417.15472785,0.00044603,30]
[382012044,1756475439582,-529.77114056,0.00044724,30]
[382012045,1756475439592,-3392.5363818,0.00044785,120]
[382012046,1756475439607,-872.93528582,0.00044799,28]
[382012047,1756475439617,-169.0,0.00044877,90]
[382012048,1756475439626,-974.0,0.00044902,2]
[382012049,1756475439636,-409.0,0.00044902,2]
[382012050,1756475439646,-499.3,0.00044933,30]
[382012051,1756475439655,-1000.0,0.0004496,10]
[382012052,1756475439665,-506.00466617,0.0004496,10]
[382012053,1756475439675,-500.0,0.00044973,10]
[382012054,1756475439684,-501.61147393,0.00044973,10]
[382012055,1756475439694,-502.87650618,0.00044973,10]
[382012056,1756475439704,-500.0,0.00044973,10]
[382012057,1756475439713,-851.16,0.00044977,30]
[382012059,1756475439723,-432.7379031,0.00044979,120]
[382012060,1756475439733,-87971.61964149,0.0004498,30]
[382012091,1756475440535,-54890.8180394,0.0004498,30]
[382012348,1756475443228,-160.0,0.0003908,3]
[382012349,1756475443239,-199.0,0.00043238,120]
[382012351,1756475443248,-166441.0,0.0004498,30]
[382012669,1756475446338,-1913.383242,0.0003799,2]
[382013943,1756475714117,262.06467857,0.00027397,120]
[382013945,1756475793573,170.253422,0.00013699,2]
[382013982,1756476430103,-210.79971477,0.00025205,2]
[382013983,1756476430123,-251.465282,0.00025246,2]
[382013984,1756476430144,-213.97,0.0002525,7]
[382013985,1756476430171,-191.7352316,0.00025507,2]
[382013986,1756476430192,-8.98380926,0.00026027,2]
[382013988,1756476436095,-161.26961274,0.00026027,2]
[382013989,1756476436121,-154.36,0.00027868,15]
[382013990,1756476436144,-86.26054108,0.00027968,15]
[382013991,1756476439167,-68.09945892,0.00027968,15]
[382013992,1756476439191,-356.70382852,0.00032236,2]
[382013993,1756476442111,-323.59949408,0.00032236,2]
[382013994,1756476442132,-70.02748878,0.00032675,30]
[382013995,1756476546103,-636.94783961,0.000253,2]
[382013996,1756476573073,10000.0,0.00027397,120]
[382014053,1756476632488,-155.39499642,0.00033082,2]
[382014055,1756476632498,-417.15472785,0.00033176,2]
[382014057,1756476632507,-1200.0,0.00033182,3]
[382014059,1756476632517,-191.543402,0.00033184,120]
[382014061,1756476632527,-300.0,0.00036784,2]
[382014063,1756476632536,-360.0,0.00036784,3]
[382014064,1756476632545,-290.0,0.00036784,3]
[382014066,1756476632558,-1120.0,0.00036784,3]
[382014067,1756476632567,-294.6377317,0.00036785,30]
[382014068,1756476632575,-1164.652766,0.00036785,30]
[382014070,1756476632585,-161.2295834,0.00036785,30]
[382014072,1756476632594,-294.6377317,0.00036785,30]
[382014074,1756476632603,-161.2295834,0.00036785,30]
[382014076,1756476632611,-294.6377317,0.00036785,30]
[382014078,1756476632620,-161.2295834,0.00036785,30]
[382014080,1756476632629,-161.2295834,0.00036785,30]
[382014081,1756476632638,-161.2295834,0.00036785,30]
[382014082,1756476632648,-161.2295834,0.00036785,30]
[382014083,1756476632657,-153.0,0.00036785,30]
[382014084,1756476632666,-292.4861458,0.00036785,30]
[382014085,1756476632675,-153.0,0.00036785,30]
[382014086,1756476632683,-153.0,0.00036785,30]
[382014087,1756476632693,-153.0,0.00036785,30]
[382014088,1756476632702,-153.0,0.00036785,30]
[382014089,1756476632711,-153.0,0.00036785,30]
[382014090,1756476632720,-153.0,0.00036785,30]
[382014091,1756476632730,-153.0,0.00036785,30]
[382014092,1756476632739,-153.0,0.00036785,30]
[382014093,1756476632748,-18483.71981158,0.000368,2]
[382014220,1756476638368,-199.0,0.00033084,120]
[382014222,1756476638381,-10097.12523304,0.000368,2]
[382014224,1756476638392,-658.61841878,0.00036886,2]
[382014226,1756476638404,-500.0,0.00036986,120]
[382014229,1756476638416,-500.0,0.00036986,120]
[382014231,1756476638428,-500.0,0.00036986,120]
[382014233,1756476638441,-500.0,0.00036986,120]
[382014236,1756476638455,-400.97824574,0.00036986,120]
[382014238,1756476638467,-160.0,0.00037064,2]
[382014240,1756476638480,-500.0,0.00037314,5]
[382014243,1756476638494,-258.80322875,0.00037314,5]
[382014245,1756476638509,-358.18747374,0.00037314,5]
[382014248,1756476638522,-183.10878006,0.00037314,5]
[382014250,1756476638533,-200.0,0.00037612,2]
[382014252,1756476638544,-845.57753514,0.00037841,2]
[382014254,1756476638555,-160.0,0.00037842,2]
[382014257,1756476638569,-160.0,0.00037843,2]
[382014259,1756476638584,-160.0,0.00037849,2]
[382014261,1756476638596,-217.30324474,0.00037849,2]
[382014263,1756476638608,-425.57542551,0.00037849,2]
[382014265,1756476638618,-501.33334754,0.0003796,5]
[382014268,1756476638630,-500.0,0.0003796,5]
[382014270,1756476638642,-500.0,0.0003796,5]
[382014272,1756476638653,-500.0,0.0003796,5]
[382014274,1756476638663,-500.0,0.0003796,5]
[382014276,1756476638674,-500.0,0.0003796,5]
[382014278,1756476638685,-500.0,0.0003796,5]
[382014280,1756476638698,-500.0,0.0003796,5]
[382014282,1756476638709,-503.08431617,0.0003796,5]
[382014285,1756476638720,-606.69096777,0.0003796,5]
[382014287,1756476638732,-151.0,0.00037969,15]
[382014289,1756476638743,-425.57542551,0.0003797,3]
[382014291,1756476638755,-153.80442326,0.00037977,15]
[382014293,1756476638766,-152.05696901,0.00037977,15]
[382014295,1756476638777,-151.31136237,0.00037977,15]
[382014298,1756476638788,-151.70976807,0.00037977,15]
[382014300,1756476638800,-151.55868899,0.00037977,15]
[382014302,1756476638812,-151.0,0.00037977,15]
[382014304,1756476638823,-151.0,0.00037977,15]
[382014306,1756476638835,-250.89996808,0.00037977,15]
[382014308,1756476638846,-151.0,0.00037977,15]
[382014310,1756476638858,-186.70227275,0.00037977,15]
[382014313,1756476638869,-217.30324474,0.0003798,3]
[382014315,1756476638880,-167.55,0.00038,7]
[382014317,1756476638892,-151.0,0.00038243,15]
[382014319,1756476638903,-151.0,0.00038251,15]
[382014321,1756476638915,-627.47,0.00038356,120]
[382014324,1756476638926,-170.253422,0.00038356,2]
[382014326,1756476638937,-409.0,0.00038429,2]
[382014328,1756476638950,-1000.0,0.00038508,5]
[382014330,1756476638961,-500.92164858,0.00038508,5]
[382014332,1756476638973,-500.0,0.00038508,5]
[382014334,1756476638983,-1000.91523638,0.00038508,5]
[382014337,1756476638995,-180.99613973,0.00038508,5]
[382014339,1756476639007,-151.0,0.00038517,15]
[382014341,1756476639019,-151.0,0.00038525,15]
[382014343,1756476639030,-172.34,0.00038781,10]
[382014345,1756476639041,-861.75,0.00038781,10]
[382014348,1756476639052,-488.89270133,0.00038791,3]
[382014350,1756476639066,-216.21406313,0.00038791,3]
[382014352,1756476639077,-417.15472785,0.00038791,3]
[382014354,1756476639089,-41257.3226829,0.00038791,3]
[382014356,1756476639100,-11089.3885032,0.00038791,3]
[382014358,1756476639112,-151.0,0.00038791,15]
[382014360,1756476639123,-245.0,0.00038799,15]
[382014363,1756476639136,-240.368,0.00038902,2]
[382014365,1756476639147,-627.47,0.00038904,120]
[382014367,1756476639161,-277.21227851,0.00039065,15]
[382014369,1756476639172,-627.47,0.00039452,120]
[382014371,1756476639184,-161.87469292,0.0004,30]
[382014373,1756476639195,-627.47,0.0004,120]
[382014376,1756476639207,-627.47,0.00040547,120]
[382014378,1756476639218,-627.47,0.00041095,120]
[382014380,1756476639227,-658.61841873,0.00041317,28]